{"text_format":"1","workbook":"xlsx","n_sheets":1,"sheets":["Drucksachen Kanton"],"not_rendered":{"charts":0,"images":1,"macros":1,"external_links":0,"defined_names":2,"comments":0,"pivot_tables":0},"unopened":[],"bounds":{"document_bytes":16777216,"sheet_cells":100000,"rows_first":2000,"rows_last":500,"rows_between":2000,"halvings":0,"cell_chars":16384,"cell_head_chars":4096},"cells_cut":0,"cells_raw":0,"read":"whole","date_system":"1900"}

{"sheet":"Drucksachen Kanton","index":0,"n_rows":67,"n_cols":7,"rows_kept":67,"cut":false,"hidden":false,"merged":[[0,5,0,6],[34,4,34,6],[35,4,35,6],[49,4,49,6],[64,0,64,2]]}
["Drucksachen für Gemeindeschulen",null,null,null,null,"2024"]
[]
["Diese Drucksachen sind erhältlich beim Amt für Volksschulen und Sport Nidwalden"]
["AVS, Stansstaderstr. 54, PF 1251, 6371 Stans, bildungsdirektion@nw.ch"]
[]
["Schule:"]
["Name Kontaktperson:"]
["Mailadresse:"]
["Bestell-Datum:"]
[]
[1,null,"Zeugnisse",null,"Anzahl","Preis"]
[202,null,"Zeugnisordner","pro Schüler/in ein Exemplar ",null,7,{"$f":"E12*F12","v":0}]
[207,null,"Dokumentation zum Zeugnis","Musterzeugnis und Wegleitung zur Beurteilung abrufbar auf Sharepoint für Lehrpersonen"]
[205,null,"Auszug aus der Volksschulverordnung","Ein Exemplar pro Ordner, Ausgabe 1.1.2020",null,0.2,{"$f":"E14*F14","v":0}]
[222,null,"Personalien","Ein Exemplar pro Ordner",null,0.2,0]
[223,null,"Standortgespräch","Ein Exemplar pro Ordner",null,0.2,0]
[224,null,"Notenblatt Kindergarten","Pro Jahr 1 Exemplar ",null,0.15,0]
[221,null,"Notenblatt Primar","pro Semester 2 Ex. (500er oder 250er Schachteln) ",null,0.15,0]
[216,null,"Notenblatt ORS","pro Semester 2 Ex. (500er Schachteln) ",null,0.15,0]
[]
[2,null,"Allgemeines"]
[null,null,"Kindergartenvorbereitung (Anregungen und Ideen). Informationsflyer für Eltern","Zur Abgabe an Eltern von Vorschulkindern. Ist in verschiedenen Sprachen erhältlich (siehe unten)."]
[341,null,"Deutsch",null,null,"gratis"]
[342,null,"Französisch",null,null,"gratis"]
[343,null,"Italienisch",null,null,"gratis"]
[344,null,"Englisch",null,null,"gratis"]
[345,null,"Spanisch",null,null,"gratis"]
[346,null,"Portugiesisch",null,null,"gratis"]
[347,null,"Tamilisch",null,null,"gratis"]
[348,null,"Tigrinisch",null,null,"gratis"]
[349,null,"Türkisch",null,null,"gratis"]
[350,null,"Serbisch",null,null,"gratis"]
[351,null,"Arabisch",null,null,"gratis"]
[352,null,"Albanisch",null,null,"gratis"]
[353,null,"Ukrainisch",null,"nur digital erhältlich"]
[354,null,"Russisch",null,"nur digital erhältlich"]
[332,null,"Weichenstellung nach der Primar","für alle Schüler/innen der 5. Kl., Ausgabe 2024",null,2.5,{"$f":"E37*F37","v":0}]
[303,null,"Wohin Schulwege führen","für alle Schüler/innen der 2. ORS, Ausgabe 2024",null,2.5,0]
[333,null,"Mix your life*","Sexual- und Aids-Aufklärung für 13- bis 16-Jährige",null,0.2,0]
[304,null,"Schulkontrolle - Mappe","Kartonmappe (A3 gefaltet)",null,1.5,0]
[305,null,"Ärztliche Untersuchungskarte","für alle Stufen (grün)",null,0.6,0]
[312,null,"Elternbrief schulärztl. Untersuch","1. Primarklasse (grün)",null,0.1,0]
[315,null,"Gutschein schulärztl. Untersuch","1. Primarklasse (grün) ",null,0.1,0]
[317,null,"Aufgebot im Rahmen der Schule","1. Primarklasse (grün)",null,0.6,0]
[313,null,"Fragebogen schulärztl. Untersuch","3. ORS (gelb)",null,0.6,0]
[314,null,"Elternbrief schulärztl. Untersuchung","Untersuch der Schulabgänger/innen (gelb)",null,0.1,0]
[316,null,"Gutschein für schulärztl. Untersuch","3. ORS oder Mittelschule (gelb)",null,0.1,0]
[321,null,"Elternbrief schulzahnärztl. Untersuch","für 3. ORS oder 3. Mittelschulklasse (rot)",null,0.1,0]
[322,null,"Gutschein schulzahnärztl. Untersuch","für 3. ORS oder 3. Mittelschulklasse (rot)",null,0.1,0]
[320,null,"Elternbrief schulärztl. Untersuch","für neu zugezogene Eltern aus dem Ausland (blau)","nur digital erhältlich"]
[319,null,"Fragebogen schulärztl. Untersuch","für neu zugezogene Eltern aus dem Ausland (blau)",null,0.1,{"$f":"E51*F51","v":0}]
[318,null,"Gutschein schulärztl. Untersuch","für neu zugezogene Kinder aus dem Ausland (blau) ",null,0.1,0]
[307,null,"Zahnärztliches Untersuchheft","für alle Stufen",null,1.7,0]
[330,null,"Umgang mit Disziplinproblemen","Abrufbar auf dem Sharepoint für Lehrpersonen"]
[327,null,"Berufseinstieg neue Lehrpersonen","Info unter www.nw.ch (Suchwort: Berufseinstieg)"]
[]
[4,null,"Sport"]
[508,null,"Wasser-Sicherheits-Check (WSC)","Safety Tool Nr. 3, bfu (nur für Lehrperson)",null,"gratis"]
[509,null,"Wasser-Sicherheits-Check (WSC)","1 Ausweis pro Kind",null,1.2,{"$f":"E59*F59","v":0}]
[510,null,"Purzelbaum. Bewegungsspass im Familienalltag","Helsana online"]
[512,null,"Purzelbaum. Ernährungsspass im Familienalltag","Helsana online"]
[513,null,"Purzelbaum. Rundum stark im Familienalltag","Helsana online"]
[511,null,"Tippfit. Bewegung verstehen, erleben, geniessen ","Sekundarstufe 1 (nur für Lehrperson)",null,"gratis"]
[]
["Gesamttotal",null,null,null,null,null,{"$f":"SUM(G12:G63)","v":0}]
[]
["*",null,"nur noch wenige Papierexemplare vorhanden (läuft aus)"]